bitfinex/quotes_ETHUSD_20260312
["timestamp","ask_amount","ask_price","bid_price","bid_amount"]
[1773287541229,0.001,2023.3,2023.0,0.96735874]
[1773287541730,1.23650017,2023.5,2022.8,1.23589431]
[1773287541731,1.23650924,2023.5,2023.1,1.6471663]
[1773287541907,1.26428636,2023.3,2022.9,0.96735874]
[1773287542108,0.5844788,2023.3,2022.9,0.96735874]
[1773287542319,0.5844788,2023.3,2023.0,0.0011]
[1773287542534,0.001,2023.1,2023.0,0.0011]
[1773287542735,0.001,2023.1,2023.0,0.96845874]
[1773287544233,0.001,2023.1,2023.0,2.20424717]
[1773287544538,0.001,2023.1,2023.0,0.0011]
[1773287548625,0.001,2023.1,2023.0,0.96845874]
[1773287548823,0.56973912,2023.4,2023.0,0.96845874]
[1773287549526,0.001,2023.5,2023.1,2.20308608]
[1773287549728,0.001,2023.5,2023.2,0.96735874]
[1773287551051,0.001,2023.5,2023.3,0.96735874]
[1773287552456,0.001,2023.5,2023.4,0.96735874]
[1773287552754,1.23528375,2023.9,2023.4,0.96735874]
[1773287553319,1.79535005,2024.0,2023.4,0.96735874]
[1773287553714,1.79535005,2024.0,2023.3,1.91405524]
[1773287553715,0.5601309,2024.0,2023.6,0.96735874]
[1773287553948,1.79532243,2024.0,2023.6,0.96735874]
[1773287554762,0.55640741,2023.8,2023.2,0.96735874]
[1773287555134,0.001,2023.3,2023.2,0.96735874]
[1773287555768,0.001,2023.3,2023.2,2.20302501]
[1773287556448,0.55169305,2024.1,2023.3,0.96735874]
[1773287556671,0.55169305,2024.1,2023.5,0.96735874]
[1773287557847,0.54704186,2023.9,2023.3,2.20296166]
[1773287558054,0.54704186,2023.9,2023.3,0.96735874]
[1773287559455,1.23517786,2024.0,2023.3,0.96735874]
[1773287559663,1.7798943,2024.0,2023.3,0.96735874]
[1773287560671,1.7798943,2024.0,2023.5,0.96735874]
[1773287562380,0.53738678,2023.9,2023.5,0.96735874]
[1773287562583,1.23529993,2023.8,2023.5,0.96735874]
[1773287562880,0.53510027,2023.7,2023.3,0.96897901]
[1773287563681,1.23529993,2023.8,2023.3,0.96897901]
[1773287563879,1.23529993,2023.8,2023.1,0.96897901]
[1773287564087,1.7681239,2023.8,2023.1,0.96897901]
[1773287564493,1.7681239,2023.8,2023.3,0.96897901]
[1773287566475,0.52831005,2023.7,2023.3,0.96897901]
[1773287566672,0.52831005,2023.7,2023.4,0.0011]
[1773287567761,0.52831005,2023.7,2023.2,0.0011]
[1773287567966,0.52831005,2023.7,2023.2,0.97007901]
[1773287568352,0.52831005,2023.7,2023.3,0.96897901]
[1773287573887,0.51135791,2023.5,2023.2,0.94677801]
[1773287574790,1.23542202,2023.6,2023.2,0.94677801]
[1773287575304,1.74241955,2023.6,2023.2,0.94677801]
[1773287577195,0.50699753,2023.6,2023.2,0.94677801]
[1773287577375,1.74242994,2023.6,2023.2,0.94677801]
[1773287579203,0.49839745,2023.5,2023.2,0.0011]
[1773287579517,0.49839745,2023.5,2023.4,0.0011]
[1773287579809,0.49939745,2023.5,2023.4,0.0011]
[1773287581175,0.58699404,2023.4,2023.0,0.0011]
[1773287583291,1.23560519,2023.3,2023.0,0.94677801]
[1773287583803,0.58569383,2023.2,2023.0,0.0011]
[1773287584002,1.81925002,2023.4,2023.0,0.94677801]
[1773287585410,1.23566627,2023.2,2023.0,0.94677801]
[1773287586115,1.23566627,2023.2,2022.9,0.0011]
[1773287586413,1.23566627,2023.2,2022.9,0.94677801]
[1773287587817,0.67848615,2023.1,2022.5,0.0011]
[1773287587981,0.96060664,2023.0,2022.5,0.0011]
[1773287588599,0.96060664,2022.6,2022.5,0.0011]
[1773287588898,0.96060664,2022.6,2022.3,0.0011]
[1773287589913,2.19669866,2022.6,2022.3,0.0011]
[1773287590110,0.96060664,2022.5,2022.3,0.0011]
[1773287590979,1.23609202,2022.6,2022.3,0.0011]
[1773287591488,2.19663801,2022.7,2022.3,0.0011]
[1773287592398,0.96060664,2022.6,2022.3,0.0011]
[1773287592704,0.96060664,2022.6,2022.5,0.0011]
[1773287594410,2.19663946,2022.6,2022.5,0.0011]
[1773287598887,2.19663946,2022.6,2022.3,0.0011]
[1773287598888,0.96060664,2022.5,2022.3,0.0011]
[1773287599510,2.1967263,2022.5,2022.3,0.0011]
[1773287600986,1.23603282,2022.6,2022.3,0.0011]
[1773287601184,0.93221097,2022.5,2022.3,0.0011]
[1773287601790,2.1683088,2022.5,2022.3,0.0011]
[1773287602822,0.93221097,2022.4,2022.3,0.0011]
[1773287603202,1.23609783,2022.5,2022.3,0.0011]
[1773287604522,2.1683088,2022.5,2022.3,0.0011]
[1773287604703,0.93221097,2022.4,2022.3,0.0011]
[1773287606214,2.16836603,2022.4,2022.2,0.0011]
[1773287608816,0.93221097,2022.3,2022.2,0.0011]
[1773287612421,1.23621618,2022.3,2022.2,0.0011]
[1773287613902,2.16842715,2022.3,2022.2,0.0011]
[1773287614419,2.16842715,2022.3,2022.0,0.0011]
[1773287614834,2.16842715,2022.3,2022.0,0.31391699]
[1773287615032,0.93221097,2022.2,2022.0,0.0011]
[1773287615334,1.23621618,2022.3,2022.0,0.0011]
[1773287615540,2.16842715,2022.3,2022.0,0.31148776]
[1773287616745,2.16842715,2022.3,2022.2,0.0011]
[1773287618912,0.93221097,2022.2,2021.8,0.0011]
[1773287619225,0.93221097,2022.2,2021.8,0.30302023]
[1773287620141,2.16842715,2022.3,2021.8,0.30302023]
[1773287620621,0.93221097,2022.2,2021.8,0.30302023]
[1773287620943,2.16854079,2022.2,2021.8,0.30302023]
[1773287622343,2.14183654,2022.2,2021.8,0.30302023]
[1773287622846,0.93727137,2022.1,2021.8,0.30302023]
[1773287623528,0.93727137,2022.0,2021.8,0.0011]
[1773287624254,2.93727137,2022.0,2021.8,0.0011]
[1773287624629,0.93727137,2021.9,2021.8,0.0011]
[1773287627135,2.17373212,2021.9,2021.8,0.0011]
[1773287627340,0.93727137,2021.9,2021.8,0.0011]
[1773287627547,4.17369574,2022.0,2021.8,0.0011]
[1773287627746,0.93727137,2021.9,2021.8,0.0011]
[1773287627933,2.17373212,2021.9,2021.8,0.0011]
[1773287628639,0.93727137,2022.3,2021.8,0.68055763]
[1773287628833,2.17353109,2022.3,2021.8,0.0011]
[1773287629026,2.17353109,2022.3,2022.0,0.0011]
[1773287629231,2.17353275,2022.3,2022.0,0.0011]
[1773287629435,0.001,2022.1,2022.0,0.0011]
[1773287630948,0.001,2022.1,2022.0,0.05308005]
[1773287632253,0.99755992,2022.4,2022.1,0.04961821]
[1773287632422,0.99755992,2022.6,2022.2,0.04961821]
[1773287635858,1.23609394,2022.5,2022.0,0.0443462]
[1773287636030,0.99755992,2022.4,2022.0,0.0443462]
[1773287637122,2.23363662,2022.6,2022.0,0.0443462]
[1773287637533,1.23584952,2022.9,2022.2,0.03901182]
[1773287637744,0.99755992,2022.8,2022.2,0.03901182]
[1773287638370,1.23597172,2022.7,2022.3,0.03690262]
[1773287638557,0.99755992,2022.9,2022.3,0.03690262]
[1773287640242,0.99755992,2022.9,2022.5,0.03270785]
[1773287640449,0.001,2023.2,2022.8,0.03270785]
[1773287640663,2.23423282,2023.2,2022.8,0.03270785]
[1773287640965,0.99755992,2023.1,2022.8,0.03270785]
[1773287642538,0.99755992,2023.1,2022.7,1.26450022]
[1773287643177,2.23328938,2023.1,2022.7,0.02854078]
[1773287643356,0.99755992,2023.0,2022.6,0.02646314]
[1773287644049,0.99455992,2023.0,2022.6,0.02646314]
[1773287644451,2.23038052,2023.0,2022.6,0.02646314]
[1773287645770,1.2358206,2023.0,2022.6,0.02646314]
[1773287645974,0.97830424,2022.9,2022.5,0.0608534]
[1773287647772,0.97830424,2023.1,2022.6,0.05685408]
[1773287649864,2.21405799,2023.1,2022.7,0.0527875]
[1773287650064,0.97830424,2023.1,2022.7,0.0527875]
[1773287651451,0.001,2023.2,2022.8,0.04874819]
[1773287651861,0.001,2023.2,2022.8,1.28462431]
[1773287652076,0.001,2023.2,2022.9,0.04674261]
[1773287652455,0.97930424,2023.2,2022.8,1.23587612]
[1773287652655,0.97930424,2023.2,2022.8,0.0011]
[1773287652870,0.001,2022.9,2022.8,0.0011]
[1773287653179,0.97930424,2022.9,2022.8,0.0011]
[1773287657563,0.001,2022.9,2022.8,0.0011]
[1773287670604,1.05032697,2022.9,2022.5,0.0011]
[1773287670893,1.04977697,2022.9,2022.5,0.0011]
[1773287671065,1.04977697,2022.9,2022.5,1.23718775]
[1773287672192,1.04977697,2022.9,2022.5,0.0011]
[1773287677208,1.04977697,2022.9,2022.7,0.0011]
[1773287678802,0.001,2022.9,2022.7,0.0011]
[1773287679680,1.04977697,2023.2,2022.7,0.0011]
[1773287683211,1.04977697,2023.2,2022.7,0.680116]
[1773287683212,1.04877697,2023.1,2022.7,0.680116]
[1773287683417,0.001,2023.5,2022.9,0.679016]
[1773287683418,1.0064402,2023.5,2022.9,0.679016]
[1773287683620,1.0064402,2023.5,2023.2,0.679016]
[1773287683913,1.0064402,2023.5,2023.0,0.679016]
[1773287684289,1.0054402,2023.4,2023.0,0.679016]
[1773287685798,1.0054402,2023.4,2023.0,1.91474976]
[1773287686816,1.0054402,2023.2,2022.7,1.23703112]
[1773287686996,1.0054402,2023.2,2022.7,1.91604712]
[1773287687911,1.0054402,2023.2,2022.9,0.679016]
[1773287688608,1.0054402,2023.2,2022.7,1.91604712]
[1773287689321,0.001,2023.5,2022.7,0.680116]
[1773287689525,0.001,2023.2,2022.8,1.23591061]
[1773287693993,0.001,2023.2,2022.7,0.680116]
[1773287694197,0.001,2023.2,2022.7,1.91607615]
[1773287694397,1.0064402,2023.2,2022.7,1.91607615]
[1773287696121,0.001,2023.2,2022.7,1.91607615]
[1773287696422,1.0064402,2023.2,2022.7,1.91607615]
[1773287701021,1.0064402,2023.2,2022.9,0.0011]
[1773287701327,0.001,2023.0,2022.9,0.0011]
[1773287702103,1.0064402,2023.0,2022.9,0.0011]
[1773287702301,1.0064402,2023.0,2022.7,1.23706015]
[1773287704133,1.0048902,2022.9,2022.7,0.0011]
[1773287704304,1.0048902,2022.9,2022.6,1.716]
[1773287704799,1.0048902,2022.9,2022.6,2.95197231]
[1773287705113,0.86639177,2023.0,2022.6,3.82618351]
[1773287706152,0.86639177,2023.0,2022.6,2.95197231]
[1773287706325,0.001,2023.5,2023.0,0.87297405]
[1773287706629,0.86639177,2023.4,2022.9,0.679016]
[1773287706830,0.86639177,2023.3,2023.0,0.87297405]
[1773287707029,0.86639177,2023.3,2022.7,4.9437459]
[1773287707234,0.86639177,2023.3,2022.9,0.884556]
[1773287709441,0.86639177,2023.3,2023.0,2.12034443]
[1773287713953,0.001,2023.1,2023.0,2.12034443]
[1773287714960,0.001,2023.1,2023.0,3.84034443]
[1773287717347,0.86639177,2023.4,2023.1,0.884556]
[1773287718223,0.86639177,2023.4,2023.0,2.95578843]
[1773287718428,0.86639177,2023.4,2023.0,3.84034443]
[1773287719870,0.001,2023.5,2023.0,3.84034443]
[1773287720038,0.86739177,2023.8,2023.2,0.679016]
[1773287720358,0.86739177,2023.8,2023.1,0.88225596]
[1773287722059,0.86496504,2023.6,2023.2,2.11685285]
[1773287722755,0.86496504,2023.6,2023.2,1.23566627]
[1773287722960,0.86496504,2023.6,2023.3,0.88118658]
[1773287723161,1.23634594,2023.8,2023.5,0.679016]
[1773287723162,0.001,2023.8,2023.5,0.679016]
[1773287723361,0.001,2023.8,2023.5,1.61068712]
[1773287724049,0.001,2023.8,2023.6,2.16709314]
[1773287724250,0.86596504,2023.8,2023.5,1.724]
[1773287724462,0.86496504,2023.7,2023.1,3.89139427]
[1773287725359,0.86496504,2023.7,2023.5,0.0011]
[1773287725659,0.86496504,2023.5,2023.1,1.724]
[1773287725961,0.86496504,2023.5,2023.3,0.0011]
[1773287727788,0.001,2023.6,2023.3,0.93277112]
[1773287728158,0.86596504,2023.6,2023.3,0.93277112]
[1773287728682,0.86596504,2023.6,2023.3,0.0011]
[1773287729983,0.86596504,2023.6,2023.3,0.93277112]
[1773287732762,0.86596504,2023.6,2023.3,0.0011]
[1773287732973,0.86496504,2023.5,2023.3,0.0011]
[1773287740691,0.86496504,2023.4,2023.3,0.0011]
[1773287740867,0.86496504,2023.4,2023.2,3.89]
[1773287741191,1.23646648,2023.6,2023.2,4.82110274]
[1773287741392,1.23646648,2023.6,2023.3,0.93110274]
[1773287741593,2.11977345,2023.6,2023.3,0.93110274]
[1773287741964,2.11977345,2023.6,2023.1,2.96372125]
[1773287742161,2.11977345,2023.6,2023.2,0.93110274]
[1773287742667,2.11972951,2023.6,2023.2,0.93110274]
[1773287743068,0.88430697,2023.6,2023.2,1.23561758]
[1773287743268,0.88430697,2023.6,2023.3,0.93110274]
[1773287743680,2.11973215,2023.6,2023.3,0.93110274]
[1773287748296,0.88330697,2023.5,2023.1,7.78479647]
[1773287749899,0.001,2023.4,2023.1,7.78479647]
[1773287750197,0.001,2023.4,2023.3,0.0011]
[1773287753378,0.001,2023.4,2023.3,0.85277394]
[1773287753702,0.001,2023.6,2023.3,0.85277394]
[1773287753869,0.93391384,2023.8,2023.4,0.85167394]
[1773287754072,0.001,2023.8,2023.6,0.85167394]
[1773287754705,0.93391384,2023.8,2023.4,0.85167394]
[1773287755904,0.93391384,2023.8,2023.4,2.08720321]
[1773287756906,0.93391384,2023.8,2023.5,0.85167394]
[1773287757107,0.93391384,2023.8,2023.6,1.0]
[1773287757396,0.001,2023.8,2023.6,1.0]
[1773287757808,0.001,2023.8,2023.6,1.85167394]
[1773287758305,0.001,2023.8,2023.7,0.85167394]
[1773287760410,0.93391384,2023.8,2023.6,1.0]
[1773287765809,0.93391384,2023.8,2023.6,0.53757592]
[1773287767230,2.16827481,2023.7,2023.6,1e-08]
[1773287771109,0.93291384,2023.7,2023.6,1e-08]
[1773287772327,1.23634607,2023.8,2023.6,1e-08]
[1773287772507,1.23634607,2023.8,2023.6,0.85167395]
[1773287772826,0.93391384,2023.8,2023.6,1e-08]
[1773287774021,0.001,2023.8,2023.6,1e-08]
[1773287776029,0.93391384,2023.8,2023.6,1e-08]
[1773287777609,4.94073666,2024.0,2023.6,1e-08]
[1773287777610,2.16808983,2024.1,2023.7,0.85167394]
[1773287778602,0.93291384,2024.4,2023.8,0.67857874]
[1773287778803,0.71557755,2024.6,2024.3,1.53025268]
[1773287779222,0.71557755,2024.6,2024.3,0.85167394]
[1773287779620,0.71483441,2024.8,2024.4,0.85167394]
[1773287781513,0.74110726,2024.8,2024.4,0.85167394]
[1773287781715,1.23462887,2024.9,2024.6,0.67857874]
[1773287781920,1.23462887,2024.9,2024.6,0.95841414]
[1773287784529,1.25521943,2024.9,2024.6,0.95841414]
[1773287784847,0.02059056,2024.8,2024.3,0.95841414]
[1773287785339,0.02059056,2024.8,2024.4,0.95841414]
[1773287785908,1.2553299,2024.8,2024.4,0.95841414]
[1773287786242,0.001,2024.7,2024.4,0.95841414]
[1773287790226,0.001,2024.7,2024.4,0.94370724]
[1773287790833,1.25408217,2024.9,2024.6,0.94370724]
[1773287791138,1.23466202,2024.9,2024.6,0.94370724]
[1773287791746,1.2816342,2025.1,2024.7,0.67857874]
[1773287791949,1.2816342,2025.1,2024.8,0.94370724]
[1773287793929,1.23451778,2025.1,2024.8,0.94370724]
[1773287795159,0.04529109,2025.0,2024.6,0.94370724]
[1773287796143,1.27988322,2025.0,2024.6,0.94370724]
[1773287798264,4.93805352,2025.1,2024.6,0.94370724]
[1773287798443,0.0438007,2025.0,2024.6,0.94370724]
[1773287798638,0.0438007,2025.0,2024.8,0.0011]
[1773287798966,0.001,2024.9,2024.8,0.0011]
[1773287799534,0.001,2024.9,2024.8,0.94480724]
[1773287803166,1.60428756,2025.2,2024.8,0.94480724]
[1773287805757,0.36980327,2025.2,2024.9,0.94370724]
[1773287806154,0.32704491,2025.2,2024.9,0.94370724]
[1773287807765,1.56149812,2025.2,2024.9,0.94370724]
[1773287809274,0.32704491,2025.2,2024.9,0.94370724]
[1773287810069,0.03893865,2025.1,2024.8,0.94480724]
[1773287811674,0.03893865,2025.1,2025.0,0.0011]
[1773287812550,0.24559838,2025.2,2025.0,0.9277782]
[1773287813181,1.23430918,2025.5,2025.1,0.9266782]
[1773287813375,0.07434509,2025.4,2025.1,0.9266782]
[1773287814878,1.23430918,2025.5,2025.1,0.9266782]
[1773287816076,0.07929302,2025.6,2025.2,0.9266782]
[1773287816270,1.31354441,2025.6,2025.2,0.9266782]
[1773287816983,0.07860755,2025.5,2025.0,0.9277782]
[1773287817358,0.07860755,2025.5,2025.0,0.0011]
[1773287817685,0.07791749,2025.4,2025.0,0.9277782]
[1773287818181,1.31304272,2025.3,2025.0,0.9277782]
[1773287820966,0.08029339,2025.2,2024.8,0.0011]
[1773287821166,0.08029339,2025.2,2024.8,0.9277782]
[1773287822768,0.08190328,2025.1,2024.8,0.0011]
[1773287823359,0.08190328,2025.1,2025.0,0.0011]
[1773287824183,1.31799181,2025.2,2025.0,0.0011]
[1773287825486,1.23450668,2025.2,2025.0,0.0011]
[1773287827788,0.08425721,2025.3,2025.0,0.9277782]
[1773287827988,1.31864307,2025.3,2025.0,0.9277782]
[1773287829390,1.31865956,2025.3,2025.0,0.9277782]
[1773287829889,0.00299893,2025.3,2025.0,0.0011]
[1773287830186,0.0037926,2025.2,2025.0,0.0011]
[1773287835599,0.0037926,2025.2,2024.8,0.0011]
[1773287835786,0.00366502,2024.9,2024.5,0.0011]
[1773287835992,0.00366502,2024.9,2024.5,0.9704568]
[1773287838103,0.00366502,2024.9,2024.5,1e-08]
[1773287847394,0.00366502,2024.9,2024.7,0.0011]
[1773287849127,0.00366502,2024.9,2024.5,0.0011]
[1773287849621,0.96148797,2024.8,2024.5,0.0011]
[1773287851106,7.33342547,2025.0,2024.5,0.0011]
[1773287851107,0.96148797,2024.6,2024.5,0.0011]
[1773287851310,2.19629978,2024.6,2024.5,0.0011]
[1773287852538,0.96148797,2024.5,2024.3,0.0011]
[1773287854225,2.19642177,2024.4,2024.3,0.0011]
[1773287855608,0.96148797,2024.3,2024.2,0.0011]
[1773287857634,2.19648278,2024.3,2024.2,0.0011]
[1773287859024,1.23499481,2024.3,2024.2,0.0011]
[1773287859224,1.23499481,2024.3,2023.9,0.89671183]
[1773287859628,2.19639979,2024.5,2024.0,0.89671183]
[1773287859803,0.96248797,2024.4,2024.0,0.89671183]
[1773287860007,0.96248797,2024.4,2023.8,0.0011]
[1773287860008,0.96248797,2024.4,2023.9,0.89671183]
[1773287860225,0.96248797,2024.4,2024.0,0.0011]
[1773287861814,0.89138386,2024.2,2024.0,0.0011]
[1773287862219,0.87750658,2024.2,2024.0,0.0011]
[1773287863849,2.11260549,2024.2,2024.0,0.0011]
[1773287864949,0.89138386,2024.1,2023.8,0.89109013]
[1773287865643,0.89138386,2024.1,2023.8,0.0011]
[1773287865847,2.12652597,2024.1,2023.8,0.0011]
[1773287867744,1.23514211,2024.1,2023.8,0.89109013]
[1773287868329,0.89138386,2024.1,2023.8,0.89109013]
[1773287868949,2.12641857,2024.3,2023.9,0.88999013]
[1773287869136,0.89138386,2024.2,2023.9,0.88999013]
[1773287870120,2.12644648,2024.2,2023.9,0.88999013]
[1773287870521,7.39201394,2024.4,2023.9,0.88999013]
[1773287870522,1.23503796,2024.3,2023.9,0.88999013]
[1773287870746,2.17207341,2024.3,2023.9,0.88999013]
[1773287870951,0.93703545,2024.2,2023.9,0.88999013]
[1773287871355,2.17207341,2024.3,2023.9,0.88999013]
[1773287872256,2.17204798,2024.3,2023.9,0.88999013]
[1773287872457,2.17204798,2024.3,2024.0,0.0011]
[1773287872837,1.23501253,2024.3,2024.0,0.96897414]
[1773287874057,2.17204798,2024.3,2024.0,0.96897414]
[1773287875362,0.93703545,2024.2,2024.0,0.0011]
[1773287876059,1.23501253,2024.3,2024.0,0.0011]
[1773287876060,1.23501253,2024.3,2024.0,0.96897414]
[1773287876361,1.91323294,2024.3,2024.0,0.96897414]
[1773287876961,0.93703545,2024.2,2024.0,0.0011]
[1773287879258,2.17214597,2024.2,2024.0,0.0011]
[1773287879466,0.93703545,2024.2,2024.0,0.0011]
[1773287881866,1.23511282,2024.2,2024.0,0.0011]
[1773287882061,0.93703545,2024.1,2023.8,0.0011]
[1773287882237,0.93703545,2024.0,2023.8,0.0011]
[1773287884466,0.93803545,2024.0,2023.8,0.0011]
[1773287885162,0.001,2024.0,2023.8,0.96897414]
[1773287894178,0.001,2024.0,2023.8,0.0011]
[1773287894682,0.93803545,2024.0,2023.8,0.0011]
[1773287896675,2.17326493,2024.0,2023.7,0.96787414]
[1773287896881,0.93703545,2023.9,2023.6,0.96787415]
[1773287897245,1.61525586,2023.9,2023.6,0.96787415]
[1773287897778,0.93703545,2023.9,2023.6,0.96787415]
[1773287898879,2.1722898,2023.9,2023.6,0.96787415]
[1773287900573,2.1722898,2023.9,2023.6,1e-08]
[1773287900765,0.90317721,2023.8,2023.5,0.0011]
[1773287901088,1.91439845,2024.0,2023.5,0.94016936]
[1773287901392,2.81757566,2024.0,2023.5,0.94016936]
[1773287903072,1.58239762,2024.0,2023.6,2.17449138]
[1773287904385,0.001,2024.0,2023.7,0.93906936]
[1773287905777,0.001,2024.0,2023.7,2.17441566]
[1773287905983,0.001,2024.0,2023.7,0.93906936]
[1773287907896,0.001,2024.0,2023.8,0.0011]
[1773287908600,0.001,2024.0,2023.8,0.94016936]
[1773287916082,0.90317721,2023.8,2023.5,0.0011]
[1773287917688,0.90317721,2023.7,2023.5,0.0011]
[1773287917969,0.90317721,2023.6,2023.5,0.0011]
[1773287923608,0.95908625,2023.5,2023.0,0.88384288]
[1773287923910,0.95908625,2023.3,2023.0,0.88384288]
[1773287924715,0.95908625,2023.3,2023.0,0.0011]
[1773287925318,0.95908625,2023.5,2023.0,0.88384288]
[1773287925526,0.95908625,2023.5,2023.2,0.88274288]
[1773287930337,0.89431986,2023.7,2023.3,0.89972577]
[1773287931239,0.89431986,2023.7,2023.4,0.0011]
[1773287934429,1.23539118,2023.7,2023.4,0.0011]
[1773287934630,0.89431986,2023.6,2023.4,0.0011]
[1773287936345,1.23539118,2023.7,2023.4,0.90082577]
[1773287936634,2.13065674,2023.8,2023.4,0.90082577]
[1773287940520,0.89431986,2023.7,2023.4,0.90082577]
[1773287941122,2.12971529,2023.7,2023.4,0.90082577]
[1773287944254,0.001,2023.5,2023.4,0.90082577]
[1773287951155,0.001,2023.8,2023.5,0.89972577]
[1773287951331,1.2363064,2023.8,2023.5,0.89972577]
[1773287952333,2.13062626,2023.8,2023.5,0.89972577]
[1773287952832,1.2363064,2023.8,2023.5,0.89972577]
[1773287953273,0.001,2023.8,2023.5,0.89972577]
[1773287955958,0.001,2023.8,2023.5,0.90082577]
[1773287956158,0.001,2023.6,2023.5,0.90082577]
[1773287963034,0.001,2023.6,2023.5,2.13630884]
[1773287965875,0.001,2023.8,2023.5,1.23658307]
[1773287966042,0.001,2023.8,2023.6,0.88489604]
[1773287968985,0.001,2023.8,2023.7,0.0011]
[1773287982269,2.12518512,2023.9,2023.7,0.0011]
[1773287983394,2.18724517,2023.9,2023.7,0.0011]
[1773287987602,1.23620894,2024.0,2023.7,0.92136065]
[1773287989499,2.18819783,2024.0,2023.7,0.92136065]
[1773287992401,2.18819783,2024.0,2023.9,0.0011]
[1773287994612,0.8958781,2023.9,2023.6,3.89]
[1773287995098,0.8958781,2023.9,2023.4,0.94061949]
[1773287996206,2.13117803,2023.8,2023.4,0.94061949]
[1773287997408,2.13117803,2023.8,2023.5,0.93951949]
[1773287999400,2.13122694,2023.8,2023.5,0.93951949]
[1773287999595,2.13206572,2024.0,2023.6,0.93951949]
[1773287999985,0.8958781,2023.9,2023.4,0.94061949]
[1773288000203,0.8958781,2023.9,2023.5,0.93951949]
[1773288000596,0.8958781,2023.7,2023.4,0.94061949]
[1773288001328,4.94111592,2023.9,2023.4,0.94061949]
[1773288001491,1.23599481,2024.4,2023.7,0.93951949]
[1773288001811,0.8958781,2023.9,2023.4,0.0011]
[1773288002022,0.8958781,2023.9,2023.4,0.94061949]
[1773288002520,0.8958781,2024.1,2023.4,0.94061949]
[1773288002676,0.8958781,2024.0,2023.6,0.93951949]
[1773288003482,0.8958781,2024.0,2023.4,0.94061949]
[1773288003705,0.8958781,2023.8,2023.4,0.0011]
[1773288004104,0.8958781,2023.8,2023.4,0.94061949]
[1773288004694,1.23536097,2023.7,2023.4,0.94061949]
[1773288005091,0.8958781,2023.8,2023.4,0.94061949]
[1773288005405,2.13119905,2023.8,2023.4,0.94061949]
[1773288005912,10.12212043,2023.8,2023.4,0.94061949]
[1773288006209,49.53240804,2023.8,2023.4,0.94061949]
[1773288006517,48.63652994,2023.8,2023.4,0.94061949]
[1773288006686,49.53240804,2023.8,2023.4,0.94061949]
[1773288007512,0.8958781,2023.7,2023.4,0.0011]
[1773288009514,0.8958781,2023.5,2023.4,0.0011]
[1773288010314,0.8958781,2023.4,2023.0,0.0011]
[1773288011082,0.8958781,2023.2,2023.0,0.0011]
[1773288011288,0.8958781,2023.2,2022.9,0.0011]
[1773288011481,0.8958781,2023.0,2022.9,0.0011]
[1773288012515,2.13147926,2023.4,2022.9,0.94061949]
[1773288013036,0.8958781,2023.3,2022.9,0.94061949]
[1773288013828,2.13153423,2023.3,2022.9,0.94061949]
[1773288014436,0.8958781,2023.2,2022.9,0.0011]
[1773288015800,0.8958781,2023.1,2022.9,0.0011]
[1773288016895,2.13159806,2023.2,2022.9,0.0011]
[1773288017102,2.13159806,2023.2,2023.1,0.0011]
[1773288017405,1.23571996,2023.2,2023.1,0.0011]
[1773288017617,0.8958781,2023.6,2023.2,0.93951949]
[1773288017802,2.13130633,2023.6,2023.3,0.93951949]
[1773288023414,2.13135898,2023.6,2023.3,0.93951949]
[1773288024553,1.23536097,2023.7,2023.3,0.93951949]
[1773288026116,2.176813,2023.7,2023.3,0.93951949]
[1773288026757,48.34266102,2023.8,2023.4,0.86993101]
[1773288026957,49.57800939,2023.8,2023.4,0.86993101]
[1773288029079,0.001,2023.6,2023.4,0.86993101]
[1773288034262,0.94145203,2023.5,2023.2,0.86993101]
[1773288034461,0.94145203,2023.5,2023.1,4.94393326]
[1773288034462,0.94145203,2023.5,2023.1,0.87103101]
[1773288036480,0.94145203,2023.4,2023.1,0.87103101]
[1773288037477,0.94145203,2023.4,2023.1,0.0011]
[1773288037675,0.001,2023.6,2023.2,0.86993101]
[1773288037979,1.23642843,2023.6,2023.2,0.86993101]
[1773288038578,2.17788046,2023.6,2023.2,0.86993101]
[1773288040353,0.94245203,2023.6,2023.2,0.87103101]
[1773288040553,0.001,2023.4,2023.2,0.87103101]
[1773288042286,2.08009226,2023.6,2023.2,0.87103101]
[1773288046959,2.19901922,2023.6,2023.2,0.87103101]
[1773288048273,1.23547888,2023.6,2023.2,0.87103101]
[1773288048603,48.6365318,2023.8,2023.3,0.88970299]
[1773288049091,48.6365318,2023.8,2023.4,0.88970299]
[1773288049390,49.60007214,2023.8,2023.4,0.88970299]
[1773288052894,49.60007214,2023.8,2023.4,0.89080299]
[1773288053090,0.001,2023.6,2023.4,0.89080299]
[1773288054500,0.001,2023.6,2023.5,0.90109901]
[1773288057802,0.001,2023.6,2023.4,0.90219901]
[1773288066788,48.6365132,2023.8,2023.5,0.90109901]
[1773288066997,49.56565723,2023.8,2023.5,0.90109901]
[1773288068216,49.56565422,2023.8,2023.5,0.90109901]
[1773288070310,48.63651019,2023.8,2023.5,0.90109901]
[1773288070506,47.40120899,2023.8,2023.5,0.90109901]
[1773288076429,47.40120899,2023.8,2023.6,0.0011]
[1773288077723,48.63651149,2023.8,2023.6,0.0011]
[1773288081026,47.40120899,2023.8,2023.6,0.0011]
[1773288081520,47.40120899,2023.8,2023.6,0.89207078]
[1773288084208,0.001,2024.2,2023.7,0.89097078]
[1773288084517,0.001,2024.2,2023.9,0.89097078]
[1773288086533,0.001,2024.2,2024.0,0.89097078]
[1773288087034,11.5120197,2024.2,2023.8,1.23526214]
[1773288087232,11.5120197,2024.2,2023.9,0.89097078]
[1773288088638,10.58468489,2024.2,2024.0,0.89097078]
[1773288089635,0.001,2024.2,2024.0,0.89097078]
[1773288090204,2.16205091,2024.8,2024.1,0.89097078]
[1773288090401,2.067,2024.7,2024.5,0.89097078]
[1773288090619,10.58368489,2024.7,2024.5,0.89097078]
[1773288091138,10.58368489,2024.6,2024.5,0.89097078]
[1773288091300,10.58368489,2024.7,2024.5,0.89097078]
[1773288091503,8.0,2024.7,2024.6,0.89097078]
[1773288091836,10.58368489,2024.8,2024.6,0.89097078]
[1773288092005,4.21794236,2025.0,2024.6,0.89097078]
[1773288092204,10.58368489,2024.9,2024.6,0.89097078]
[1773288093817,10.58368489,2024.9,2024.6,2.12578088]
[1773288094034,10.58368489,2024.9,2024.6,0.89097078]
[1773288094826,10.58368489,2024.9,2024.7,0.89097078]
[1773288096721,2.99533481,2025.0,2024.7,0.89097078]
[1773288096918,10.99533481,2025.0,2024.7,0.89097078]
[1773288097221,12.65168489,2025.0,2024.8,0.89097078]
[1773288098244,10.068,2025.0,2024.8,0.89097078]
[1773288098423,2.068,2025.0,2024.8,0.89097078]